bitfinex-derivatives/quotes_ETHF0:USTF0_20250905
["timestamp","ask_amount","ask_price","bid_price","bid_amount"]
[1757090320300,0.7462,4296.0,4295.9,0.5439]
[1757090320598,1.55734353,4296.0,4295.9,0.7671]
[1757090320803,0.9842,4296.0,4295.9,0.7671]
[1757090322104,0.9842,4296.1,4296.0,0.5439]
[1757090322290,0.9842,4296.1,4295.6,0.3336]
[1757090322490,0.7462,4295.7,4295.6,0.5439]
[1757090322695,0.7462,4295.7,4295.6,0.7671]
[1757090323100,0.4164,4295.7,4295.6,0.7671]
[1757090323302,0.2066,4295.7,4295.6,0.7671]
[1757090323603,0.9842,4296.3,4296.2,0.5439]
[1757090323806,1.55699475,4296.3,4296.2,0.5439]
[1757090324501,1.55699475,4296.3,4295.6,0.3336]
[1757090324697,0.9842,4296.3,4295.6,0.3336]
[1757090324900,0.7462,4296.3,4295.6,0.3336]
[1757090325202,0.16442843,4296.5,4295.2,0.3336]
[1757090325203,0.4164,4295.7,4295.2,0.3336]
[1757090325402,0.5396,4295.6,4295.5,0.5439]
[1757090325703,0.238,4296.2,4295.5,0.5591]
[1757090325904,0.9842,4296.2,4296.1,0.2103]
[1757090326102,0.9842,4296.2,4296.1,0.5439]
[1757090326506,0.6544,4296.2,4296.1,0.7671]
[1757090326702,0.3298,4296.5,4296.1,0.7671]
[1757090326905,0.9842,4296.8,4296.7,0.2103]
[1757090327101,1.55665176,4296.8,4296.7,0.5439]
[1757090327298,0.9842,4296.8,4296.7,0.5439]
[1757090327507,0.2066,4296.8,4296.7,0.7671]
[1757090328311,0.238,4297.4,4296.8,0.3085]
[1757090328606,0.9773,4297.4,4297.3,0.5126]
[1757090329206,0.9773,4297.4,4297.3,0.7236]
[1757090329507,0.7393,4297.4,4297.3,0.7236]
[1757090329707,0.4128,4297.4,4297.3,0.7236]
[1757090330007,3.2078,4297.9,4297.3,0.7236]
[1757090330008,0.2057,4297.9,4297.8,0.4151]
[1757090330407,0.4128,4297.9,4297.8,0.4151]
[1757090330603,0.7393,4297.9,4297.8,0.7236]
[1757090331306,0.7393,4297.7,4297.6,0.5126]
[1757090332309,0.7393,4297.7,4297.6,0.7236]
[1757090333203,0.4128,4297.7,4297.6,0.7236]
[1757090333400,0.7393,4297.7,4297.6,0.7236]
[1757090333805,0.4128,4297.7,4297.6,0.7236]
[1757090334005,0.7393,4297.7,4297.6,0.7236]
[1757090334708,0.4128,4297.7,4297.6,0.7236]
[1757090334899,0.2057,4297.7,4297.6,0.7236]
[1757090335507,0.7393,4297.7,4297.6,0.5126]
[1757090336110,0.4128,4297.7,4297.6,0.7236]
[1757090336415,0.7393,4297.7,4297.6,0.7236]
[1757090336808,0.7393,4297.7,4297.1,0.3085]
[1757090338619,0.3265,4297.6,4296.8,3.5163]
[1757090338818,0.7393,4296.9,4296.8,3.9314]
[1757090339727,0.4128,4296.9,4296.8,3.9314]
[1757090340226,0.3265,4296.8,4296.2,3.2078]
[1757090340424,0.7393,4296.3,4296.2,3.2078]
[1757090340725,0.3265,4296.2,4295.8,0.3085]
[1757090340919,0.4128,4295.9,4295.8,0.7236]
[1757090342320,0.7393,4295.9,4295.8,0.7236]
[1757090345022,0.4128,4295.9,4295.8,0.7236]
[1757090345321,0.7393,4295.9,4295.8,0.7236]
[1757090347624,0.7393,4295.9,4295.8,0.5126]
[1757090347823,0.7393,4295.9,4295.6,3.5163]
[1757090347824,0.3265,4295.8,4295.6,3.5163]
[1757090348027,0.7393,4295.7,4295.6,3.7204]
[1757090348222,0.7393,4295.7,4295.6,3.9314]
[1757090348819,0.7393,4295.7,4295.2,0.3085]
[1757090349019,0.3265,4295.6,4295.0,3.3326]
[1757090349223,0.4128,4295.1,4295.0,4.0562]
[1757090349431,0.7393,4295.1,4295.0,3.9314]
[1757090350219,0.7393,4295.1,4295.0,3.7204]
[1757090350421,0.7393,4295.1,4295.0,3.4119]
[1757090350626,0.7393,4295.1,4295.0,0.2041]
[1757090350933,0.7393,4295.1,4295.0,0.5126]
[1757090352529,0.7393,4295.1,4294.6,0.3085]
[1757090352732,0.7393,4294.6,4294.5,0.6374]
[1757090352928,0.7393,4294.6,4294.5,0.5126]
[1757090353334,0.7393,4294.6,4294.5,0.7236]
[1757090353835,0.4128,4294.6,4293.9,3.2078]
[1757090354034,0.4128,4294.6,4294.1,0.3085]
[1757090354235,0.3265,4294.5,4294.4,0.2041]
[1757090354434,0.7393,4294.5,4294.4,0.5126]
[1757090355435,0.4128,4294.5,4294.4,0.7236]
[1757090355628,3.2078,4294.8,4294.5,0.4333]
[1757090355834,3.4135,4294.8,4294.7,0.4151]
[1757090356037,3.4135,4294.8,4294.7,0.7236]
[1757090356837,3.9471,4294.8,4294.7,0.7236]
[1757090357541,3.9471,4294.8,4294.7,0.5126]
[1757090357741,3.9471,4294.8,4294.1,0.3085]
[1757090358540,3.9471,4294.8,4293.6,0.238]
[1757090358541,3.9471,4294.8,4293.6,0.3174]
[1757090358737,0.23287,4294.7,4293.6,0.3174]
[1757090358932,0.7348,4294.7,4294.6,0.2193]
[1757090359130,0.6517,4294.7,4294.6,0.7456]
[1757090359548,3.4216,4295.3,4295.2,0.7456]
[1757090359845,3.9426,4295.3,4295.2,0.7456]
[1757090360234,3.6215,4295.3,4295.2,0.7456]
[1757090360731,3.2078,4295.3,4295.2,0.7456]
[1757090360930,3.9426,4295.3,4294.6,0.3174]
[1757090361145,4.1806,4295.3,4294.6,0.3174]
[1757090361438,3.6215,4295.3,4295.2,0.7456]
[1757090361638,3.4216,4295.3,4295.2,0.7456]
[1757090361935,3.2078,4295.3,4295.2,0.7456]
[1757090363130,0.238,4295.5,4295.2,0.7456]
[1757090363344,3.2078,4295.8,4295.7,0.7456]
[1757090363749,3.4216,4295.8,4295.7,0.7456]
[1757090363940,0.2138,4295.8,4295.7,0.7456]
[1757090364240,0.238,4296.1,4295.7,0.7456]
[1757090364442,0.6517,4296.1,4296.0,0.8716]
[1757090364644,0.9728,4296.1,4296.0,0.8716]
[1757090364940,0.9728,4296.1,4296.0,0.7456]
[1757090366039,0.9728,4296.1,4296.0,0.5367]
[1757090366235,0.9728,4296.1,4295.5,0.3174]
[1757090366236,0.7348,4295.6,4295.5,0.3174]
[1757090366745,0.7348,4295.6,4295.5,0.5367]
[1757090367148,0.7348,4295.6,4295.5,0.7456]
[1757090367346,0.7348,4295.6,4295.5,0.8716]
[1757090367542,0.4137,4295.6,4295.5,0.8716]
[1757090369234,0.3211,4296.3,4295.6,0.3174]
[1757090369438,0.4137,4296.3,4296.2,0.7456]
[1757090370049,0.2138,4296.3,4296.2,0.7456]
[1757090370542,0.2138,4296.3,4295.5,0.364]
[1757090370543,0.7348,4296.3,4295.6,0.3174]
[1757090371546,1.25447725,4297.4,4295.5,0.126]
[1757090371547,3.2078,4297.0,4296.3,0.3174]
[1757090371848,3.2078,4297.0,4296.0,0.126]
[1757090371849,3.6215,4297.0,4296.9,0.7456]
[1757090372153,0.7348,4297.0,4296.9,0.7456]
[1757090372647,0.4137,4297.0,4296.9,0.7456]
[1757090372849,0.4137,4297.0,4296.5,3.3338]
[1757090372850,0.4137,4297.5,4297.4,0.2193]
[1757090373156,0.9728,4297.5,4297.4,0.5367]
[1757090373648,0.2138,4297.1,4297.0,0.8716]
[1757090374338,0.7348,4297.1,4297.0,0.8716]
[1757090374546,0.4137,4297.1,4297.0,0.8716]
[1757090374847,0.2138,4297.1,4297.0,0.8716]
[1757090375151,0.4518,4297.4,4297.3,0.7456]
[1757090375643,0.7348,4297.4,4297.3,0.3174]
[1757090375838,0.7348,4297.4,4297.3,0.5367]
[1757090376046,0.4137,4297.2,4297.1,0.5367]
[1757090376246,0.7348,4297.2,4297.1,0.7456]
[1757090376444,0.4137,4297.2,4297.1,0.7456]
[1757090379145,0.7348,4297.2,4297.1,0.7456]
[1757090379345,0.4137,4296.8,4296.7,0.5367]
[1757090379545,0.7348,4296.8,4296.7,0.5367]
[1757090379947,0.4137,4296.8,4296.7,0.7456]
[1757090381252,0.2138,4296.8,4296.7,0.7456]
[1757090381441,0.1175,4297.5,4296.7,0.4282]
[1757090381639,0.5591,4297.5,4297.0,0.8716]
[1757090381839,0.9728,4297.5,4297.4,0.4282]
[1757090382045,0.9728,4297.5,4297.4,0.7456]
[1757090382245,0.7348,4297.5,4297.4,0.7456]
[1757090382449,0.7348,4297.5,4297.0,0.126]
[1757090382655,0.7348,4297.2,4297.1,0.5367]
[1757090383052,0.7348,4297.2,4296.6,0.3174]
[1757090383952,0.7348,4297.2,4297.1,0.5367]
[1757090384558,0.7348,4297.2,4297.1,0.7456]
[1757090385050,0.4137,4297.2,4297.1,0.7456]
[1757090386453,0.3211,4297.1,4296.6,0.3174]
[1757090386654,0.2138,4296.7,4296.6,0.7456]
[1757090387158,0.2138,4297.1,4297.0,0.8716]
[1757090387353,0.4137,4296.7,4296.6,0.7456]
[1757090387853,0.3211,4297.0,4296.7,0.3174]
[1757090388161,0.3211,4297.4,4296.7,0.3174]
[1757090388453,0.7301,4297.4,4297.3,0.2193]
[1757090388656,0.7301,4297.4,4297.3,0.5148]
[1757090388855,0.7301,4297.4,4297.3,0.7112]
[1757090389256,0.7301,4297.4,4297.3,0.5148]
[1757090390357,0.2125,4296.7,4296.6,0.6923]
[1757090391356,0.3175,4297.1,4296.6,0.6923]
[1757090391562,0.3175,4297.1,4296.7,0.2955]
[1757090391753,0.2125,4296.8,4296.7,0.6923]
[1757090392256,0.3175,4297.2,4296.7,0.3968]
[1757090392457,0.4077,4297.5,4297.4,0.3968]
[1757090392960,0.7252,4297.5,4297.4,0.4959]
[1757090393166,0.4077,4297.1,4296.5,3.3338]
[1757090393460,0.2125,4296.7,4296.6,0.6923]
[1757090395956,3.2078,4297.6,4296.7,0.2955]
[1757090396158,3.4203,4297.6,4297.5,0.8091]
[1757090396557,3.2078,4297.6,4297.5,0.8091]
[1757090396955,0.238,4298.0,4297.6,0.2955]
[1757090397155,0.2125,4298.0,4297.9,0.6923]
[1757090397359,0.7252,4298.0,4297.9,0.4959]
[1757090397665,1.29829132,4298.0,4297.5,0.1168]
[1757090397863,0.1952,4297.7,4297.6,0.2004]
[1757090398163,0.4077,4297.7,4297.6,0.6923]
[1757090399459,0.7252,4297.7,4297.6,0.6923]
[1757090399655,0.7252,4297.7,4297.0,3.3246]
[1757090399855,0.4077,4297.2,4297.1,0.4959]
[1757090400061,0.7252,4297.2,4297.1,0.4959]
[1757090400264,4.98561287,4297.2,4296.3,3.2078]
[1757090400460,0.7252,4296.4,4296.3,3.4082]
[1757090400661,0.4077,4296.9,4296.8,0.2004]
[1757090400887,0.3175,4296.8,4296.6,0.2955]
[1757090401063,0.4077,4296.7,4296.6,0.6923]
[1757090401460,0.98621322,4296.7,4296.6,0.6923]
[1757090402061,3.2078,4297.3,4296.6,0.6923]
[1757090402062,3.5253,4297.3,4297.0,0.1168]
[1757090402364,3.2078,4297.3,4297.2,0.6923]
[1757090402567,0.57835511,4297.3,4297.2,0.6923]
[1757090402764,0.4505,4297.6,4297.5,0.1168]
[1757090403068,1.22402385,4297.6,4297.5,0.8091]
[1757090403670,0.98602385,4297.6,4297.5,0.8091]
[1757090404267,1.30352385,4297.6,4297.5,0.8091]
[1757090404467,1.30352385,4297.6,4297.5,0.6923]
[1757090404665,0.57832385,4297.6,4297.5,0.8091]
[1757090404863,3.4458,4298.0,4297.6,0.2955]
[1757090405065,0.5782852,4297.9,4297.8,0.3968]
[1757090405257,3.2078,4298.0,4297.8,0.6923]
[1757090405461,3.2078,4298.0,4297.9,0.6923]
[1757090405663,3.99842901,4298.0,4297.9,0.6923]
[1757090405964,4.511128,4298.0,4297.9,0.99139044]
[1757090406472,3.933,4298.0,4297.9,0.99139044]
[1757090407158,0.7252,4298.0,4297.9,0.99139044]
[1757090407767,1.30307401,4298.0,4297.9,0.59459044]
[1757090407970,1.42087401,4298.0,4297.9,0.29909044]
[1757090408165,1.10337401,4298.0,4297.5,0.1168]
[1757090408469,0.7252,4297.7,4297.6,0.78372047]
[1757090409662,0.7252,4297.7,4297.6,0.98012047]
[1757090410463,0.7252,4297.7,4297.6,0.28782047]
[1757090410670,0.2125,4297.2,4297.1,0.6923]
[1757090410868,0.2125,4297.2,4297.1,0.98011825]
[1757090411070,0.3175,4297.6,4297.1,0.98011825]
[1757090411371,0.7252,4297.6,4297.5,0.4959]
[1757090411567,1.30295967,4297.6,4297.5,0.78371825]
[1757090411766,1.30295967,4297.6,4297.5,1.09691825]
[1757090411963,1.30295967,4297.6,4297.5,0.8091]
[1757090412168,0.98545967,4297.6,4297.5,0.8091]
[1757090412474,1.30295967,4297.6,4297.5,0.6923]
[1757090412674,1.30295967,4297.6,4297.5,0.4959]
[1757090413470,1.30295967,4297.6,4296.8,3.2078]
[1757090413471,0.3175,4297.1,4296.8,3.2078]
[1757090413670,0.7252,4297.1,4297.0,0.4959]
[1757090413972,0.4077,4297.1,4297.0,1.09697696]
[1757090414171,0.2125,4297.1,4297.0,1.09697696]
[1757090414368,0.7252,4297.4,4297.3,0.3968]
[1757090414574,0.98550965,4297.4,4297.3,0.6923]
[1757090415265,0.79030965,4297.4,4297.3,0.6923]
[1757090416677,0.237,4297.6,4297.3,0.6923]
[1757090416678,3.4203,4298.5,4298.4,0.6923]
[1757090416872,0.79024982,4298.5,4298.4,0.6923]
[1757090417062,0.57774982,4298.5,4298.4,0.6923]
[1757090418569,0.237,4298.8,4298.5,0.1243]
[1757090418876,0.1979,4298.8,4298.7,0.6935]
[1757090419076,0.98539221,4298.8,4298.7,0.6935]
[1757090419279,1.28369221,4298.8,4298.7,0.6935]
[1757090419878,0.98539221,4298.8,4298.7,0.6935]
[1757090421079,1.28369221,4298.8,4298.7,0.6935]
[1757090421975,0.408,4298.6,4298.5,0.3002]
[1757090422175,0.7063,4298.6,4298.5,0.3002]
[1757090423275,0.408,4298.6,4298.0,3.3246]
[1757090423473,0.7063,4298.2,4298.1,0.79076409]
[1757090423678,0.7063,4298.2,4298.1,0.98616409]
[1757090423879,0.7063,4298.2,4298.1,0.29266409]
[1757090424079,0.408,4298.2,4298.1,0.98616409]
[1757090424878,0.7063,4298.2,4298.1,0.98616409]
[1757090425284,0.6662,4298.9,4298.8,0.1979]
[1757090425576,1.69139559,4298.9,4298.8,0.6935]
[1757090425984,1.39309559,4298.9,4298.8,0.6935]
[1757090426680,1.39309559,4298.9,4298.5,0.1243]
[1757090426681,1.39309559,4298.9,4298.6,0.3002]
[1757090426870,0.7063,4298.7,4298.6,0.4981]
[1757090427075,0.17,4298.9,4298.6,0.3933]
[1757090427273,0.17,4298.9,4298.8,0.3933]
[1757090427476,0.3679,4298.9,4298.8,0.6935]
[1757090428083,0.17,4298.9,4298.8,0.6935]
[1757090428474,3.2078,4299.6,4298.8,4.98441654]
[1757090428674,3.4057,4299.6,4299.5,0.8178]
[1757090429078,0.1979,4299.6,4299.5,0.8178]
[1757090429277,0.408,4299.6,4299.5,0.8178]
[1757090430275,0.9359,4300.0,4299.9,0.3933]
[1757090430481,2.0251127,4300.0,4299.9,0.6935]
[1757090430891,1.7268127,4300.0,4299.6,0.3002]
[1757090431080,0.7063,4299.6,4299.5,0.3222]
[1757090431478,0.4151,4299.5,4299.0,3.3321]
[1757090431673,0.7063,4299.1,4299.0,0.4981]
[1757090431886,0.7063,4299.1,4298.5,3.3321]
[1757090431887,0.408,4298.6,4298.5,0.3222]
[1757090432084,0.408,4298.6,4298.5,1.10853464]
[1757090432386,0.408,4298.6,4298.1,0.3002]
[1757090432387,0.7063,4298.6,4298.1,0.3002]
[1757090432587,0.7063,4298.5,4298.4,0.1979]
[1757090432783,0.2983,4298.4,4298.0,3.3321]
[1757090432982,0.9443,4298.4,4298.3,0.4981]
[1757090433286,0.9443,4298.4,4298.3,0.6935]
[1757090433483,0.408,4298.4,4298.3,0.6935]
[1757090433988,0.7063,4298.4,4298.3,0.6935]
[1757090434990,0.7063,4298.4,4298.3,0.4981]
[1757090435394,0.1979,4297.7,4297.6,0.6935]
[1757090435683,0.1979,4297.7,4297.6,0.98441209]
[1757090436485,3.549,4298.5,4297.6,0.68421209]
[1757090436689,1.28761564,4298.4,4298.3,0.1979]
[1757090436890,0.7063,4298.4,4298.3,0.4981]
[1757090437688,0.408,4298.4,4298.1,0.3002]
[1757090437887,0.408,4298.2,4298.1,0.3002]
[1757090438087,0.7063,4298.2,4298.1,0.3002]
[1757090438287,0.7063,4298.2,4298.1,0.4981]
[1757090438481,0.408,4298.2,4298.1,0.6935]
[1757090438680,3.4458,4298.5,4298.1,0.6935]
[1757090438989,3.2078,4298.5,4298.4,0.6935]
[1757090439585,0.7063,4298.5,4298.4,0.6935]
[1757090439793,0.7063,4298.5,4298.4,0.4981]
[1757090439995,0.7063,4298.5,4298.4,0.1979]
[1757090440892,0.408,4298.2,4298.1,0.6935]
[1757090441292,0.1979,4298.2,4298.1,0.6935]
[1757090441489,0.1979,4298.2,4298.1,0.98427583]
[1757090442194,0.1979,4298.6,4298.5,0.5176]
[1757090442395,0.4359,4298.6,4298.5,0.5176]
[1757090442795,0.4359,4298.6,4298.5,0.8178]
[1757090443098,3.3246,4299.0,4298.5,0.8178]
[1757090443099,0.238,4298.8,4298.5,0.8178]
[1757090443394,0.238,4298.8,4298.7,0.6935]
[1757090443787,3.2078,4299.0,4298.7,0.3933]
[1757090443989,0.58156878,4298.9,4298.8,0.6935]
[1757090444187,0.77946878,4298.9,4298.8,0.6935]
[1757090444388,3.2078,4299.5,4299.0,0.1243]
[1757090444585,3.4057,4299.5,4299.4,0.6935]
[1757090444788,4.49577433,4299.5,4299.4,0.6935]
[1757090444997,0.7063,4299.1,4299.0,0.5176]
[1757090445194,0.7063,4299.1,4299.0,0.80843213]
[1757090445587,0.7063,4299.1,4299.0,1.10863213]
[1757090445795,0.7063,4299.1,4298.5,3.3321]
[1757090445796,0.9443,4299.1,4298.6,0.3002]
[1757090446001,0.2983,4298.9,4298.8,0.6935]
[1757090446201,0.1979,4298.9,4298.8,0.9830232]
[1757090447396,0.408,4298.9,4298.8,0.9830232]
[1757090447596,0.7063,4298.9,4298.8,0.9830232]
[1757090447799,0.408,4298.9,4298.8,0.9830232]
[1757090448304,0.7167,4298.9,4298.8,0.7860232]
[1757090448503,0.408,4298.9,4298.8,0.9884232]
[1757090448904,0.1979,4298.9,4298.8,0.9884232]
[1757090449106,3.3246,4299.5,4299.4,0.4965]
[1757090449107,3.6098,4299.5,4299.4,0.4965]
[1757090449304,4.42985462,4299.5,4299.4,0.6989]
[1757090449504,4.73855462,4299.5,4299.4,0.6989]
[1757090450203,4.42985462,4299.5,4299.4,0.6989]
[1757090450604,4.19185462,4299.5,4299.4,0.6989]
[1757090450907,4.42985462,4299.5,4299.4,0.6989]
[1757090451300,3.2078,4299.5,4299.4,0.98820609]
[1757090452301,3.4068,4299.5,4299.4,0.98812787]
[1757090453005,0.238,4299.7,4299.4,0.98812787]
[1757090453203,0.199,4299.6,4299.5,0.5259]
[1757090453500,0.402,4299.6,4299.5,0.5259]
[1757090453698,0.402,4299.6,4299.5,0.8216]
[1757090453894,0.199,4299.6,4299.5,0.8216]
[1757090455008,0.437,4299.7,4299.6,0.6989]
[1757090455498,0.199,4299.7,4299.6,0.6989]
[1757090457008,0.199,4299.7,4299.0,3.3305]
[1757090457009,0.7107,4299.7,4299.1,0.2957]
[1757090457202,0.238,4299.8,4299.5,0.2008]
[1757090457401,0.7107,4299.6,4299.5,0.4965]
[1757090457906,0.3087,4299.5,4299.1,0.2957]
[1757090458106,0.402,4299.2,4299.1,0.6989]
[1757090458307,0.402,4299.2,4299.1,0.98816496]
[1757090458602,3.2078,4299.6,4299.1,0.69246496]
[1757090458808,3.4068,4299.6,4299.5,0.5259]
[1757090459007,3.6098,4299.6,4299.5,0.8216]
[1757090460209,3.4068,4299.6,4299.5,0.8216]
[1757090460809,3.9185,4299.6,4299.5,0.8216]
[1757090461316,3.2078,4299.6,4299.5,0.8216]
[1757090461506,3.79171398,4299.6,4299.5,1.11091967]
[1757090461706,3.4068,4299.6,4299.5,1.11091967]
[1757090462007,3.4068,4299.6,4299.5,0.8216]
[1757090462912,4.50224653,4299.6,4299.5,0.8216]
[1757090463208,4.19354653,4299.6,4299.5,0.8216]
[1757090464322,3.2078,4299.6,4299.5,0.8216]
[1757090466207,0.699,4300.0,4299.9,0.6989]
[1757090466408,1.28272482,4300.0,4299.9,0.6989]
[1757090467009,1.48572482,4300.0,4299.9,0.6989]
[1757090467513,0.5,4300.0,4299.9,0.6989]
[1757090471219,0.5,4300.0,4299.9,3.9067]
[1757090472110,0.5,4300.0,4299.9,4.19984566]
[1757090472711,0.5,4300.0,4299.9,4.19983332]
[1757090473417,0.5,4300.0,4299.9,4.43683332]
[1757090478917,0.5,4300.0,4299.9,4.19983332]
[1757090479120,0.5,4300.0,4299.9,4.43683332]
[1757090481416,0.3169,4300.8,4300.0,0.1242]
[1757090481618,0.728,4300.8,4300.7,0.515]
[1757090481822,0.728,4300.8,4300.7,0.724]
[1757090482516,0.4111,4300.8,4300.7,0.724]
[1757090482722,0.4111,4300.8,4300.7,1.0170703]
[1757090483320,0.4111,4300.8,4300.7,0.724]
[1757090483619,3.9358,4301.2,4301.1,0.724]
[1757090483817,4.51954982,4301.2,4301.1,0.724]
[1757090484217,4.51954982,4301.2,4300.6,0.3178]
[1757090484417,0.728,4300.7,4300.6,0.3178]
[1757090484619,0.728,4300.7,4300.6,1.01711537]
[1757090485723,1.31178261,4300.7,4300.2,0.3178]
[1757090485920,0.728,4300.7,4300.0,0.1242]
[1757090486221,0.728,4300.2,4300.1,1.01726283]
[1757090486814,0.4111,4300.2,4300.1,1.01726283]
[1757090487422,0.728,4300.2,4300.1,1.01726283]
[1757090487618,3.2078,4301.2,4300.1,1.01726283]
[1757090487820,1.31194884,4301.1,4301.0,0.515]
[1757090488018,1.31194884,4301.1,4300.5,0.1242]
[1757090488223,0.728,4300.7,4300.6,1.02207779]
[1757090491424,0.4111,4300.7,4300.6,1.02207779]
[1757090491623,0.728,4300.7,4300.6,1.02207779]
[1757090492917,0.728,4300.7,4300.6,0.81307779]
[1757090493623,1.31168083,4300.7,4300.6,0.61587779]
[1757090494028,1.31168083,4300.7,4300.6,0.81307779]
[1757090494221,1.31168083,4300.7,4300.6,0.515]
[1757090494526,0.79608083,4300.7,4300.6,1.02244233]
[1757090495114,0.99478083,4300.7,4300.6,1.02244233]
[1757090495518,1.31168083,4300.7,4300.6,1.02244233]
[1757090497728,1.31168083,4300.7,4300.6,0.29844233]
[1757090498026,1.31168083,4300.7,4300.6,0.61624233]
[1757090498424,1.31168083,4300.7,4300.6,0.29844233]
[1757090499424,1.31168083,4300.7,4300.6,0.81344233]
[1757090499623,1.31168083,4300.7,4300.6,1.02244233]
[1757090500626,1.31168083,4300.7,4300.6,0.81344233]
[1757090501421,1.31168083,4300.7,4300.6,0.81378416]
[1757090501929,1.31168083,4300.7,4300.6,0.29878615]
[1757090502126,1.31168083,4300.7,4300.6,0.515]
[1757090502628,1.31168083,4300.7,4300.6,0.3178]
[1757090502830,1.31168083,4300.7,4300.1,0.3178]
[1757090503018,0.2124,4300.3,4300.2,1.02284642]
[1757090503221,0.58368083,4300.3,4300.2,0.70504642]
[1757090503421,2.25015103,4301.0,4300.9,0.4062]
[1757090503728,2.56705103,4301.0,4300.9,0.724]
[1757090504231,1.31257378,4301.0,4300.9,0.724]
[1757090505420,0.99567378,4301.0,4300.9,0.724]
[1757090505629,1.31257378,4301.0,4300.9,0.724]
[1757090506225,0.99567378,4301.0,4300.9,0.724]
[1757090506720,1.31257378,4301.0,4300.9,0.724]
[1757090507125,1.31257378,4301.0,4300.6,0.3178]
[1757090507431,0.2124,4300.6,4300.5,0.8482]
[1757090507626,0.2124,4300.6,4300.5,1.14861351]
[1757090507824,0.58457378,4300.6,4300.5,1.14861351]
[1757090508027,0.58457378,4300.8,4300.5,1.14861351]
[1757090508221,0.58457378,4300.7,4300.6,1.01131325]
[1757090508424,0.79707378,4300.7,4300.6,1.01131325]
[1757090508630,1.28887378,4300.7,4300.6,1.01131325]
[1757090508831,0.99687378,4300.7,4300.6,1.01131325]
[1757090510232,1.28887378,4300.7,4300.6,1.01131325]
[1757090511130,0.99687378,4300.7,4300.6,1.01131325]
[1757090511336,0.58457378,4300.7,4300.6,1.01131325]
[1757090511532,0.79707378,4300.7,4300.6,1.01131325]
[1757090512624,1.28887378,4300.7,4300.6,1.01131325]
[1757090513330,1.28887378,4300.7,4300.6,0.79951325]
[1757090513534,0.99687378,4300.7,4300.6,1.01131325]
[1757090514136,0.79707378,4300.7,4300.6,1.01131325]
[1757090516437,0.292,4301.1,4301.0,0.1243]
[1757090516635,1.0891026,4301.1,4301.0,1.13561325]
[1757090516936,0.5846026,4301.1,4301.0,1.13561325]
[1757090517338,3.2078,4301.7,4301.0,5.37261325]
[1757090517538,0.58433482,4301.6,4301.5,0.8352]
[1757090517839,0.79683482,4301.6,4301.5,1.13561325]
[1757090518237,0.58433482,4301.6,4301.5,1.13561325]
[1757090518437,0.58433482,4301.6,4301.5,1.12712289]
[1757090518639,3.4998,4302.2,4301.6,0.3041]
[1757090518837,0.7043,4301.8,4301.7,1.00282289]
[1757090519136,1.28833375,4301.8,4301.7,1.00282289]
[1757090519530,0.7043,4301.8,4301.7,1.00282289]
[1757090519733,1.28737322,4301.8,4301.7,1.00282289]
[1757090520340,0.4123,4301.4,4301.3,3.5119]
[1757090520533,0.4123,4301.4,4301.3,3.80366573]
[1757090520534,0.7043,4301.4,4301.3,3.80366573]
[1757090520729,0.7043,4301.4,4301.3,3.99866573]
[1757090520929,0.7043,4301.4,4301.3,0.29176573]
[1757090521133,1.287406,4301.4,4301.3,0.29176573]
[1757090521332,1.287406,4301.4,4300.9,0.3041]
[1757090521639,0.7043,4301.1,4301.0,0.29178662]
[1757090521834,0.1169,4301.0,4300.4,0.237]
[1757090522141,0.7043,4300.5,4300.4,0.7361]
[1757090522440,0.7043,4300.5,4300.4,1.23973632]
[1757090522638,0.2125,4300.5,4300.4,1.00273632]
[1757090523035,0.7043,4300.5,4300.4,1.00273632]
[1757090523734,0.7043,4300.5,4300.4,0.59593632]
[1757090523933,0.8075,4300.5,4300.4,0.29183632]
[1757090524436,1.39064775,4300.5,4300.4,0.29183632]
[1757090525030,5.62764775,4300.5,4299.7,0.3041]
[1757090525235,0.7043,4299.9,4299.8,0.29184678]
[1757090525429,3.2078,4300.1,4299.9,0.3041]
[1757090525640,0.4123,4299.7,4299.6,0.195]
[1757090525838,0.4123,4299.7,4299.6,0.79094243]
[1757090525839,0.7043,4299.7,4299.6,0.79094243]
[1757090526450,0.7043,4299.7,4299.6,0.29184243]
[1757090526942,1.28736434,4299.7,4299.3,0.3041]
[1757090527152,0.821,4299.5,4299.4,0.29182774]
[1757090527441,0.821,4299.5,4299.1,3.5119]
[1757090527442,0.292,4299.4,4299.1,3.5119]
[1757090527647,0.7043,4299.2,4299.1,3.7069]
[1757090527847,0.7043,4299.2,4299.1,4.21030526]
[1757090528051,0.2125,4299.2,4299.1,4.21032437]
[1757090528650,0.2125,4299.6,4299.5,0.5311]
[1757090529045,0.2125,4299.6,4299.5,0.8352]
[1757090529251,0.1167,4301.5,4300.0,0.1243]
[1757090529252,0.292,4301.2,4300.0,0.1243]
[1757090529440,0.58213633,4301.1,4300.9,3.2078]
[1757090529749,0.4122,4301.0,4300.9,3.2078]
[1757090529943,0.292,4301.4,4300.9,4.09325688]
[1757090530248,0.292,4301.4,4301.0,1.06592688]
[1757090530447,0.292,4301.4,4301.1,1.06592688]
[1757090530746,0.292,4301.4,4301.2,1.06590688]
[1757090530955,0.292,4301.4,4301.3,0.88645688]
[1757090531454,0.292,4301.9,4301.3,1.30490688]
[1757090531749,0.5045,4301.9,4301.8,3.2078]
[1757090531948,0.5045,4301.9,4301.8,3.85525688]
[1757090532545,0.7043,4301.9,4301.8,3.85525688]
[1757090534147,0.292,4301.9,4301.8,3.85525688]
[1757090534354,0.5045,4301.9,4301.8,3.85525688]
[1757090535349,0.7043,4301.9,4301.8,3.85525688]
[1757090536857,0.7043,4301.9,4301.8,3.86297912]